bitfinex/quotes_SOLUSD_20251002
["timestamp","ask_amount","ask_price","bid_price","bid_amount"]
[1759399913517,4.44148345,225.15,225.11,30.98]
[1759399913817,4.44148345,225.15,225.12,0.7]
[1759399917814,4.44148345,225.15,225.11,30.98]
[1759399917992,4.44148345,225.15,225.13,0.66]
[1759399918194,4.44148345,225.15,225.12,0.66]
[1759399919725,137.34132165,225.16,225.11,30.98]
[1759399919919,137.34132165,225.16,225.13,0.66]
[1759399920093,132.9,225.16,225.14,0.66]
[1759399920294,132.9,225.21,225.15,30.98]
[1759399920518,132.9,225.21,225.16,0.66]
[1759399921221,137.34048111,225.21,225.16,0.66]
[1759399921395,0.15,225.26,225.16,0.66]
[1759399921590,132.9,225.28,225.16,0.66]
[1759399921591,4.4391175,225.27,225.19,4.44069452]
[1759399921789,35.4191175,225.27,225.2,31.64]
[1759399922018,35.4191175,225.27,225.21,0.66]
[1759399922190,0.15,225.26,225.21,30.98]
[1759399922387,0.15,225.26,225.21,31.64]
[1759399922693,35.4191175,225.27,225.22,0.66]
[1759399923018,35.5691175,225.27,225.22,0.66]
[1759399923198,46.66691125,225.27,225.22,0.66]
[1759399923406,46.51691125,225.27,225.23,0.66]
[1759399925012,35.4191175,225.27,225.24,0.66]
[1759399925197,35.4191175,225.27,225.22,0.66]
[1759399925401,11.02647521,225.26,225.19,31.64]
[1759399925609,0.15,225.25,225.19,30.98]
[1759399926618,0.15,225.25,225.19,0.66]
[1759399926814,4.43970875,225.24,225.19,0.66]
[1759399927023,4.43970875,225.24,225.2,0.66]
[1759399927826,4.43970875,225.24,225.18,31.64]
[1759399928120,4.43970875,225.24,225.19,0.66]
[1759399928322,4.43970875,225.24,225.18,30.98]
[1759399928625,137.33970875,225.24,225.19,0.66]
[1759399928924,137.33970875,225.24,225.18,30.98]
[1759399929111,137.33970875,225.24,225.19,0.66]
[1759399931301,137.48970875,225.24,225.19,0.66]
[1759399931904,148.43898063,225.24,225.18,30.96]
[1759399932229,148.43898063,225.24,225.19,0.66]
[1759399932629,148.58898063,225.24,225.19,0.66]
[1759399932843,0.15,225.23,225.18,30.96]
[1759399933042,0.15,225.22,225.18,30.96]
[1759399933338,0.15,225.22,225.18,20.8]
[1759399933543,179.54898063,225.24,225.17,31.62]
[1759399933839,179.54898063,225.24,225.18,0.66]
[1759399935653,179.39898063,225.24,225.18,0.66]
[1759399935824,179.39898063,225.24,225.16,31.62]
[1759399935825,11.02647521,225.23,225.16,31.62]
[1759399936140,11.02647521,225.23,225.17,0.66]
[1759399937148,4.44010301,225.22,225.17,0.66]
[1759399937444,4.44010301,225.22,225.18,0.66]
[1759399945273,4.44010301,225.22,225.18,0.7]
[1759399948837,4.44010301,225.22,225.19,0.7]
[1759399950550,4.44010301,225.22,225.18,0.7]
[1759399950748,4.44010301,225.22,225.19,0.7]
[1759399950967,4.44010301,225.22,225.2,0.7]
[1759399952260,4.44010301,225.22,225.16,35.40122186]
[1759399952463,4.44010301,225.22,225.2,0.7]
[1759399954062,4.43990587,225.23,225.16,35.40122186]
[1759399954237,4.43990587,225.23,225.17,0.7]
[1759399954441,132.9,225.24,225.19,20.8]
[1759399954745,132.9,225.24,225.2,0.7]
[1759399955055,132.9,225.24,225.21,30.96]
[1759399955365,132.9,225.24,225.22,0.7]
[1759399955734,132.9,225.24,225.19,20.8]
[1759399955941,0.15,225.23,225.17,0.7]
[1759399956142,4.44010301,225.22,225.17,0.7]
[1759399956356,4.59010301,225.22,225.17,0.7]
[1759399956565,4.44010301,225.22,225.18,0.7]
[1759399957363,4.59010301,225.22,225.16,0.7]
[1759399958741,15.69036053,225.22,225.16,0.7]
[1759399960560,15.54036053,225.22,225.16,0.7]
[1759399960752,46.65036053,225.22,225.16,0.7]
[1759399960949,0.15,225.21,225.15,30.96]
[1759399961148,0.15,225.21,225.15,31.66]
[1759399961743,11.02647521,225.21,225.15,0.7]
[1759399962063,15.69174066,225.2,225.15,0.7]
[1759399962764,15.54174066,225.2,225.13,51.76]
[1759399962954,15.54174066,225.2,225.16,0.7]
[1759399966146,15.69174066,225.2,225.14,0.7]
[1759399967070,4.44089173,225.18,225.14,0.7]
[1759399967550,4.44089173,225.18,225.15,0.7]
[1759399970672,4.44089173,225.18,225.13,30.96]
[1759399970983,4.44089173,225.18,225.14,0.7]
[1759399971160,4.44089173,225.18,225.13,35.40186329]
[1759399971361,4.44089173,225.18,225.14,0.7]
[1759399971561,4.44089173,225.18,225.15,0.7]
[1759399972256,4.44089173,225.18,225.16,0.7]
[1759399973170,4.44089173,225.18,225.13,35.40186329]
[1759399973376,4.44089173,225.18,225.14,0.7]
[1759399975580,4.44089173,225.18,225.15,0.69]
[1759399978677,4.44089173,225.18,225.13,35.40186329]
[1759399978988,4.44089173,225.18,225.16,0.69]
[1759399981702,4.44089173,225.18,225.15,0.69]
[1759399982277,137.34071822,225.19,225.16,0.69]
[1759399983177,132.9,225.19,225.16,0.69]
[1759399983904,132.9,225.19,225.16,25.93124167]
[1759399984200,30.96,225.23,225.17,31.65]
[1759399984398,35.39973471,225.24,225.18,0.69]
[1759399985389,46.49900659,225.24,225.18,0.69]
[1759399988599,35.39973471,225.24,225.18,0.69]
[1759399991798,4.43973471,225.24,225.18,0.69]
[1759399993591,15.46598686,225.25,225.18,0.69]
[1759399993808,132.9,225.24,225.18,0.69]
[1759399994584,132.9,225.24,225.18,5.13082138]
[1759399994788,132.9,225.24,225.19,0.69]
[1759399995591,137.33980889,225.24,225.19,0.69]
[1759399996193,137.33980889,225.24,225.19,31.63]
[1759399996498,136.09811721,225.24,225.2,0.69]
[1759399997413,142.11598195,225.29,225.23,20.8]
[1759399997594,142.11598195,225.29,225.23,51.74]
[1759399997915,142.11598195,225.29,225.24,0.69]
[1759399998493,146.55472801,225.29,225.24,0.69]
[1759399998908,146.55472801,225.29,225.23,56.17989259]
[1759399999104,146.55472801,225.29,225.24,0.69]
[1759399999307,146.55472801,225.29,225.25,0.69]
[1759400000110,146.55472801,225.29,225.26,0.69]
[1759400000419,146.55472801,225.29,225.23,25.23989259]
[1759400000728,12.51281669,225.28,225.22,20.8]
[1759400000910,31.09,225.27,225.22,20.8]
[1759400001095,0.15,225.26,225.22,20.8]
[1759400001300,0.15,225.25,225.2,0.69]
[1759400002421,4.43970875,225.24,225.2,0.69]
[1759400002618,4.43970875,225.24,225.19,56.18067765]
[1759400002824,4.43970875,225.24,225.21,0.69]
[1759400004024,24.21010484,225.28,225.21,0.69]
[1759400004025,13.33362963,225.28,225.24,20.8]
[1759400004321,0.1,225.3,225.28,20.8]
[1759400004520,0.1,225.3,225.29,30.94]
[1759400004724,0.1,225.3,225.29,31.65]
[1759400005423,0.1,225.3,225.29,36.08872342]
[1759400011824,0.1,225.3,225.29,0.71]
[1759400012030,0.1,225.3,225.29,57.15727934]
[1759400012542,0.1,225.3,225.29,61.59600276]
[1759400013141,0.1,225.3,225.29,26.17727934]
[1759400013315,0.1,225.3,225.29,30.98]
[1759400013921,0.1,225.3,225.29,31.69]
[1759400014127,0.1,225.3,225.29,36.12872342]
[1759400015334,0.1,225.3,225.29,31.69]
[1759400016620,0.1,225.3,225.29,30.98]
[1759400016813,0.1,225.3,225.29,31.69]
[1759400018221,0.1,225.3,225.29,36.12872342]
[1759400020342,0.1,225.3,225.29,5.14872342]
[1759400020540,0.1,225.3,225.29,36.12872342]
[1759400022315,0.1,225.3,225.29,5.14872342]
[1759400022517,0.1,225.3,225.29,36.12872342]
[1759400022821,0.1,225.3,225.29,5.14872342]
[1759400023143,0.1,225.3,225.29,36.12872342]
[1759400026247,0.1,225.3,225.29,51.76]
[1759400028949,0.1,225.3,225.29,20.8]
[1759400029141,0.1,225.3,225.29,51.76]
[1759400033151,0.1,225.3,225.29,52.47]
[1759400039557,0.1,225.3,225.29,21.51]
[1759400039853,0.1,225.3,225.29,52.43]
[1759400043047,0.1,225.3,225.29,56.86872342]
[1759400047567,0.1,225.3,225.29,67.74519863]
[1759400053285,0.1,225.3,225.29,73.25327462]
[1759400061587,0.1,225.3,225.29,30.74679941]
[1759400061766,0.25,225.3,225.28,4.43891221]
[1759400061968,0.1,225.3,225.29,30.92]
[1759400062494,0.25,225.3,225.29,51.72]
[1759400062867,0.25,225.3,225.29,30.92]
[1759400063074,0.25,225.3,225.29,51.72]
[1759400064288,0.1,225.3,225.29,56.15872342]
[1759400067700,0.1,225.3,225.25,4.43942881]
[1759400067871,0.1,225.3,225.18,27.11805867]
[1759400067872,4.53862249,225.3,225.24,0.69]
[1759400068190,0.15,225.29,225.24,30.94]
[1759400068361,0.15,225.28,225.24,30.94]
[1759400068564,0.15,225.27,225.24,30.94]
[1759400069778,0.25,225.3,225.24,30.94]
[1759400069981,0.15,225.29,225.24,35.37963999]
[1759400070377,4.53857554,225.3,225.24,30.94]
[1759400070576,0.15,225.29,225.24,30.94]
[1759400070775,0.15,225.29,225.24,36.06969748]
[1759400071188,0.15,225.29,225.24,35.37969748]
[1759400072190,4.58877599,225.29,225.24,35.37969748]
[1759400072576,0.1,225.3,225.25,0.69]
[1759400072781,0.1,225.3,225.26,0.69]
[1759400073198,0.25,225.3,225.24,36.06969748]
[1759400074183,4.68855482,225.3,225.24,36.06969748]
[1759400074580,4.68855482,225.3,225.25,5.12943226]
[1759400074783,4.53855482,225.3,225.26,30.94]
[1759400075090,4.68855482,225.3,225.26,30.94]
[1759400076196,0.1,225.3,225.27,0.69]
[1759400076370,0.1,225.3,225.28,0.69]
[1759400076797,0.1,225.3,225.28,31.61]
[1759400078192,0.1,225.3,225.29,0.69]
[1759400086005,0.1,225.3,225.27,0.69]
[1759400086301,0.1,225.3,225.29,30.92]
[1759400086683,0.1,225.3,225.29,31.61]
[1759400087502,0.1,225.3,225.29,30.92]
[1759400089423,0.1,225.3,225.29,31.61]
[1759400090700,0.1,225.3,225.27,0.69]
[1759400090885,0.1,225.3,225.28,31.61]
[1759400091497,0.1,225.3,225.28,30.92]
[1759400091800,0.1,225.3,225.29,0.69]
[1759400093999,0.1,225.3,225.29,5.12872342]
[1759400096512,0.1,225.3,225.29,36.04872342]
[1759400101489,0.1,225.3,225.29,37.82527734]
[1759400103632,0.1,225.3,225.29,6.90527734]
[1759400103814,0.1,225.3,225.29,37.82527734]
[1759400104209,0.1,225.3,225.29,6.90527734]
[1759400104397,0.1,225.3,225.29,37.82527734]
[1759400108206,0.1,225.36,225.32,20.8]
[1759400108414,0.1,225.36,225.33,30.92]
[1759400108617,0.1,225.36,225.34,30.92]
[1759400109008,0.1,225.36,225.35,0.7]
[1759400110922,0.1,225.36,225.35,25.9375416]
[1759400114318,0.1,225.36,225.35,5.1375416]
[1759400121444,0.1,225.36,225.35,10.64561759]
[1759400123024,0.1,225.36,225.35,5.50807599]
[1759400123224,0.1,225.36,225.35,31.62]
[1759400124941,0.1,225.36,225.35,36.0575416]
[1759400127649,0.1,225.36,225.35,46.93401681]
[1759400127861,0.1,225.36,225.35,48.71001858]
[1759400132051,0.1,225.36,225.35,54.21809457]
[1759400133758,1e-08,225.36,225.35,54.21809457]
[1759400133942,0.23,225.37,225.36,16.3845512]
[1759400133943,1e-08,225.37,225.36,16.3845512]
[1759400134257,1e-08,225.37,225.36,17.0645512]
[1759400135230,1e-08,225.37,225.36,21.50189589]
[1759400135647,1e-08,225.37,225.36,23.27773997]
[1759400137536,1e-08,225.41,225.36,48.85288323]
[1759400137742,1e-08,225.41,225.4,20.8]
[1759400137949,1e-08,225.41,225.4,57.20807599]
[1759400138262,1e-08,225.41,225.4,59.66352595]
[1759400139241,1e-08,225.41,225.4,64.10008318]
[1759400140663,1e-08,225.41,225.4,77.44836889]
[1759400141196,1e-08,225.41,225.4,63.42008318]
[1759400141343,0.15000001,225.41,225.4,4.43655723]
[1759400141540,0.15000001,225.41,225.4,30.9]
[1759400142760,0.15000001,225.41,225.35,11.09357052]
[1759400142761,0.15000001,225.41,225.37,4.43707464]
[1759400142949,0.15,225.4,225.38,30.9]
[1759400143152,1e-08,225.41,225.4,20.8]
[1759400144162,0.15000001,225.41,225.34,4.43767487]
[1759400144364,0.15,225.4,225.35,30.9]
[1759400144539,0.15,225.39,225.38,20.8]
[1759400144745,0.15,225.39,225.37,30.9]
[1759400144948,0.15,225.38,225.29,13.32356272]
[1759400145145,0.15,225.37,225.3,30.9]
[1759400145346,0.15,225.36,225.26,10.87647521]
[1759400145572,0.15,225.35,225.27,30.9]
[1759400145758,1e-08,225.41,225.27,36.01909264]
[1759400145759,131.65830832,225.39,225.27,36.01909264]
[1759400146078,0.15,225.38,225.3,20.8]
[1759400146256,0.15,225.37,225.31,30.92]
[1759400147461,136.09507058,225.39,225.27,4.43909264]
[1759400147462,0.15,225.36,225.27,4.43909264]
[1759400147662,10.87647521,225.38,225.31,20.8]
[1759400147663,0.15,225.35,225.31,20.8]
[1759400147869,0.15,225.34,225.31,20.8]
[1759400148059,0.15,225.33,225.31,20.8]
[1759400148259,0.15,225.32,225.31,20.8]
[1759400149481,0.15,225.32,225.28,35.39882416]
[1759400149666,0.15,225.36,225.31,20.8]
[1759400149970,0.15,225.35,225.31,51.74]
[1759400150476,0.15,225.38,225.31,52.42]
[1759400150781,0.15,225.37,225.31,56.17825979]
[1759400153865,4.58716274,225.37,225.31,56.17825979]
[1759400154861,4.43716274,225.37,225.31,56.17825979]
[1759400155175,131.80830832,225.39,225.31,56.17825979]
[1759400155176,4.43695092,225.38,225.31,56.17825979]
[1759400157282,4.58695092,225.38,225.31,56.17825979]
[1759400157461,4.58695092,225.38,225.31,56.86825979]
[1759400158875,4.58695092,225.38,225.31,56.17825979]
[1759400159080,4.58695092,225.38,225.32,0.69]
[1759400160161,0.15,225.37,225.32,20.8]
[1759400160563,0.15,225.36,225.29,31.63]
[1759400162108,4.4375416,225.35,225.3,0.69]
[1759400162260,4.4375416,225.35,225.29,35.37870186]
[1759400162459,4.4375416,225.35,225.3,0.69]
[1759400162677,4.4375416,225.35,225.31,0.69]
[1759400162990,4.4375416,225.35,225.32,0.69]
[1759400163163,15.52932823,225.38,225.32,0.69]
[1759400165080,15.67932823,225.38,225.32,0.69]
[1759400165254,15.67932823,225.38,225.3,4.43848909]
[1759400165460,15.52932823,225.38,225.3,5.12848909]
[1759400165661,4.43734469,225.36,225.3,5.12848909]
[1759400166870,4.43734469,225.36,225.31,0.69]
[1759400168868,0.15,225.36,225.31,0.69]
[1759400169692,15.52932823,225.38,225.31,0.69]
[1759400169994,4.43734469,225.36,225.31,0.69]
[1759400170372,4.58734469,225.36,225.31,0.69]
[1759400171278,4.43734469,225.36,225.31,0.69]
[1759400172895,4.43734469,225.36,225.32,0.69]
[1759400173391,4.58734469,225.36,225.3,31.61]
[1759400174094,4.43734469,225.36,225.31,0.69]
[1759400174275,4.5871478,225.37,225.31,0.69]
[1759400177988,142.68478353,225.36,225.18,9.86248199]
[1759400178191,162.72830832,225.35,225.24,0.69]
[1759400178718,10.87647521,225.33,225.24,0.69]
[1759400178890,0.15,225.32,225.25,20.8]
[1759400179193,10.87647521,225.3,225.25,20.8]
[1759400179395,0.15,225.29,225.24,0.69]
[1759400179615,0.15,225.28,225.2,0.69]
[1759400179776,0.15,225.28,225.22,0.69]
[1759400180698,35.3591175,225.27,225.22,0.69]
[1759400180895,35.5091175,225.27,225.22,0.69]
[1759400181204,0.15,225.26,225.2,0.69]
[1759400181383,0.15,225.26,225.17,4.44101474]
[1759400181384,11.02647521,225.26,225.17,4.44101474]
[1759400181696,0.15,225.25,225.18,0.69]
[1759400182275,0.15,225.25,225.17,0.7]
[1759400182276,11.02647521,225.24,225.17,0.7]
[1759400182507,31.07,225.23,225.15,0.7]
[1759400182694,4.44010301,225.22,225.16,0.7]
[1759400184003,30.92,225.23,225.16,0.7]
[1759400184200,35.36005009,225.23,225.16,0.7]
[1759400184802,46.23618396,225.24,225.16,0.7]
[1759400185186,57.33545584,225.24,225.16,0.7]
[1759400185379,26.56545584,225.24,225.16,0.7]
[1759400185703,57.48545584,225.24,225.16,0.7]
[1759400186504,26.56545584,225.24,225.16,0.7]
[1759400186701,4.44010301,225.22,225.16,0.7]
[1759400187399,4.59010301,225.22,225.16,0.7]
[1759400192917,136.09870831,225.21,225.16,0.7]
[1759400193212,136.09870831,225.21,225.17,0.66]
[1759400193412,136.09865006,225.21,225.17,0.66]
[1759400193615,131.65830832,225.21,225.17,0.66]
[1759400193920,131.65830832,225.21,225.18,0.66]
[1759400194122,131.65830832,225.21,225.15,4.44145736]
[1759400194419,131.65830832,225.21,225.16,0.66]
[1759400194616,131.65830832,225.21,225.17,0.66]
[1759400195416,131.65830832,225.21,225.17,3.47929823]
[1759400195629,131.65830832,225.21,225.18,0.66]
[1759400196111,131.65830832,225.21,225.16,4.44126099]
[1759400196112,136.2486329,225.21,225.16,0.66]
[1759400199326,131.65830832,225.21,225.17,0.66]
[1759400199701,136.09862998,225.21,225.17,0.66]
[1759400199902,136.09862998,225.21,225.16,5.10125295]
[1759400200624,136.24862998,225.21,225.16,5.10125295]
[1759400200800,136.09862998,225.21,225.16,0.66]
[1759400201005,136.24862998,225.21,225.16,0.66]
[1759400202619,131.65830832,225.21,225.17,0.66]
[1759400202822,131.65830832,225.21,225.18,4.44089173]
[1759400203024,131.65830832,225.21,225.19,0.66]
[1759400203330,131.65830832,225.21,225.2,0.66]
[1759400204033,131.65830832,225.21,225.18,4.44089173]
[1759400204214,131.65830832,225.21,225.19,0.66]
[1759400204417,131.65830832,225.21,225.18,4.44089173]
[1759400204418,131.65830832,225.21,225.18,0.66]
[1759400204620,131.65830832,225.21,225.19,0.66]
[1759400206725,4.58952331,225.25,225.2,0.66]
[1759400206937,131.65830832,225.27,225.2,0.66]
[1759400206938,136.09753181,225.27,225.2,0.66]
[1759400207111,30.94,225.26,225.2,0.66]
[1759400207439,30.94,225.26,225.21,4.44030016]
[1759400207637,30.94,225.26,225.22,0.66]
[1759400207813,30.94,225.26,225.23,0.66]
[1759400209936,167.03752155,225.27,225.23,0.66]
[1759400210235,167.18752155,225.27,225.21,0.66]
[1759400212140,167.18752155,225.27,225.21,5.1002127]
[1759400213121,0.15,225.26,225.19,25.24051764]
[1759400213326,0.15,225.26,225.2,0.66]
[1759400213543,11.02647521,225.26,225.2,0.66]
[1759400214422,131.65830832,225.27,225.2,5.10044163]
[1759400214630,131.65830832,225.27,225.23,20.8]
[1759400214837,131.65830832,225.27,225.24,0.69]
[1759400215027,131.65830832,225.27,225.25,0.69]
[1759400215224,131.65830832,225.27,225.23,20.8]
[1759400215425,131.65830832,225.27,225.26,0.69]
[1759400216742,136.24746105,225.27,225.21,30.92]
[1759400216951,41.94647521,225.26,225.2,20.8]
[1759400217246,0.15,225.25,225.17,5.13107867]
[1759400217447,31.07,225.24,225.17,5.13107867]
[1759400217625,31.07,225.24,225.17,0.69]
[1759400217938,31.07,225.24,225.18,20.8]
[1759400218143,31.07,225.24,225.17,0.69]
[1759400218347,4.43990587,225.23,225.17,21.49]
[1759400219535,4.58990587,225.23,225.17,21.49]
[1759400219731,4.58990587,225.23,225.17,20.8]
[1759400219947,41.94647521,225.22,225.15,0.69]
[1759400220837,0.15,225.21,225.13,0.69]
[1759400221033,31.07,225.2,225.13,5.13186488]
[1759400221226,10.87647521,225.22,225.14,21.49]
[1759400221432,10.87647521,225.22,225.15,0.69]
[1759400222050,15.31668198,225.22,225.16,4.44128619]
[1759400222251,15.31668198,225.22,225.14,25.24149702]
[1759400222431,15.46668198,225.22,225.15,0.69]
[1759400223135,26.5669395,225.22,225.15,0.69]
[1759400224152,0.15,225.21,225.15,0.69]
[1759400224354,4.44049733,225.2,225.15,0.69]
[1759400224740,15.31676399,225.22,225.16,0.69]
[1759400225639,131.65830832,225.21,225.16,0.69]
[1759400225838,4.44049733,225.2,225.17,0.69]
[1759400226748,131.65830832,225.21,225.17,0.69]
[1759400226934,30.96,225.25,225.17,0.69]
[1759400228230,35.39968808,225.25,225.17,5.13104298]
[1759400228447,4.43968808,225.25,225.18,0.69]
[1759400228755,4.43968808,225.25,225.18,31.65]
[1759400228932,4.43968808,225.25,225.19,0.69]
[1759400229644,4.43931456,225.26,225.19,0.69]
[1759400232239,4.58931456,225.26,225.19,0.69]
[1759400232443,0.15,225.25,225.19,0.69]
[1759400233459,4.43970875,225.24,225.19,0.69]
[1759400233658,4.43970875,225.24,225.2,0.69]
[1759400236755,4.43970875,225.24,225.18,31.65]
[1759400236946,4.43970875,225.24,225.19,0.69]
[1759400237146,4.58970875,225.24,225.19,0.69]
[1759400237454,4.43970875,225.24,225.2,0.69]
[1759400237930,4.43970875,225.24,225.21,0.69]
[1759400238335,131.65830832,225.26,225.22,0.69]
[1759400238533,131.65830832,225.26,225.23,0.69]
[1759400239064,131.65830832,225.26,225.21,0.69]
[1759400239361,131.65830832,225.26,225.22,0.69]
[1759400240236,131.65830832,225.26,225.23,0.69]
[1759400240237,136.09767808,225.26,225.23,0.69]
[1759400240561,136.24767808,225.26,225.2,5.13035101]
[1759400241057,136.24767808,225.26,225.2,0.69]
[1759400242458,0.15,225.25,225.19,30.92]
[1759400242650,11.02647521,225.25,225.18,31.59]
[1759400242964,4.43970875,225.24,225.19,0.67]
[1759400243161,4.43970875,225.24,225.2,0.67]
[1759400243465,4.43970875,225.24,225.21,0.67]
[1759400244964,162.57830832,225.26,225.21,0.67]
[1759400245143,131.65830832,225.26,225.21,0.67]
[1759400245349,131.65830832,225.26,225.21,25.91026571]
[1759400245547,131.65830832,225.26,225.22,0.67]
[1759400245757,131.65830832,225.26,225.23,30.92]
[1759400245964,131.65830832,225.26,225.24,0.67]
[1759400246256,131.65830832,225.26,225.25,0.67]
[1759400249666,131.65830832,225.26,225.23,35.35978036]
[1759400249835,131.65830832,225.26,225.24,0.67]
[1759400250354,131.65830832,225.26,225.21,0.67]
[1759400250557,131.65830832,225.26,225.22,52.39]
[1759400250944,131.65830832,225.26,225.22,20.8]
[1759400250945,136.09763555,225.26,225.22,20.8]
[1759400251148,136.09763555,225.26,225.22,0.67]
[1759400255367,136.09763555,225.26,225.23,0.67]
[1759400256771,136.09763555,225.26,225.21,31.59]
[1759400256957,136.09763555,225.26,225.22,0.67]
[1759400260370,162.72830832,225.25,225.15,0.67]
[1759400260573,131.65830832,225.24,225.16,30.92]
[1759400260757,178.11797887,225.23,225.16,30.92]
[1759400261072,0.15,225.22,225.16,31.59]
[1759400262273,10.87647521,225.2,225.12,0.67]
[1759400262476,31.07,225.19,225.08,2.51949532]
[1759400262653,0.15,225.18,225.09,31.59]
[1759400262852,46.61381133,225.17,225.09,31.59]
[1759400263053,46.61381133,225.17,225.1,0.67]
[1759400264849,0.15,225.16,225.1,0.67]
[1759400267150,15.54519208,225.15,225.1,0.67]
[1759400267372,15.54519208,225.15,225.11,0.67]
[1759400267669,15.54519208,225.15,225.09,30.92]
[1759400267670,0.15,225.14,225.09,0.67]
[1759400268872,46.46519208,225.15,225.1,0.67]
[1759400269881,46.61519208,225.15,225.1,0.67]
[1759400273072,4.44187802,225.13,225.1,0.67]
[1759400273262,15.54657308,225.13,225.1,0.67]
[1759400273464,15.54657308,225.13,225.08,0.87]
[1759400273658,15.54657308,225.13,225.09,0.67]
[1759400274580,15.54657308,225.13,225.09,0.7]
[1759400274879,15.54657308,225.13,225.1,0.7]
[1759400276481,15.54657308,225.13,225.08,0.9]
[1759400278863,15.54657308,225.13,225.09,0.7]
[1759400279063,15.54657308,225.13,225.1,0.7]
[1759400280987,15.69657308,225.13,225.08,0.2]
[1759400281169,15.69657308,225.13,225.08,0.9]
[1759400282484,0.15,225.12,225.08,0.2]
[1759400282665,0.15,225.11,225.08,0.2]
[1759400282874,31.09,225.1,225.08,0.2]
[1759400283189,0.15,225.09,225.08,0.2]
[1759400284265,30.94,225.1,225.08,0.2]
[1759400284567,4.44266737,225.09,225.08,0.2]
[1759400284765,35.38266737,225.09,225.08,0.2]
[1759400285368,35.53266737,225.09,225.08,0.2]
[1759400286079,46.40914258,225.09,225.08,0.2]
[1759400288578,48.73201403,225.09,225.08,0.2]
[1759400288778,48.73201403,225.09,225.08,1e-08]
[1759400288779,50.51165053,225.09,225.08,1e-08]
[1759400292090,10.87647521,225.08,225.02,0.2]
[1759400292289,13.19934666,225.06,225.02,0.2]
[1759400292482,10.87647521,225.04,225.02,0.2]
[1759400292680,46.28032714,225.03,225.02,0.2]
[1759400300612,4.44385193,225.03,225.02,0.9]
[1759400300994,35.40385193,225.03,225.02,0.9]
[1759400302802,4.44385193,225.03,225.02,0.9]
[1759400304015,11.10881009,225.05,225.02,0.9]
[1759400304216,42.06881009,225.05,225.03,0.72]
[1759400304414,42.06881009,225.05,225.04,0.72]
[1759400304921,42.06881009,225.05,225.02,0.92]
[1759400305093,42.06881009,225.05,225.03,0.72]
[1759400306211,46.51226709,225.05,225.03,0.72]
[1759400307115,46.51226709,225.05,225.02,0.2]
[1759400307414,46.51226709,225.05,225.04,0.72]
[1759400308499,46.51226709,225.05,225.02,0.2]
[1759400308693,46.51226709,225.05,225.04,0.72]
[1759400311417,46.51226709,225.05,225.02,0.92]
[1759400311622,46.51226709,225.05,225.03,0.72]
[1759400315319,46.51226709,225.05,225.02,0.2]
[1759400315508,46.51226709,225.05,225.02,0.92]
[1759400318448,46.51226709,225.05,225.02,0.2]
[1759400318608,35.403457,225.05,225.03,0.72]
[1759400319112,35.403457,225.05,225.04,0.72]
[1759400319312,35.403457,225.05,225.03,0.72]
[1759400319619,46.51209952,225.05,225.03,0.72]
[1759400320203,46.51209952,225.05,225.04,0.72]
[1759400322313,46.51209952,225.05,225.02,0.92]
[1759400322627,46.51209952,225.05,225.03,0.72]